Cogmind - Beta 11.1 @@@ ROGUE MODE // 2022.06.28 @ 13:21:06 Player: Cyurio Result: Destroyed by Y-45 Defender with Beam Rifle Performance ------------- Evolutions (2) 1000 Regions Visited (4) 800 Robots Destroyed (43) 215 Value Destroyed (1370) 1370 Prototype IDs (0) 0 Alien Tech Used (0) 0 Bonus (292) 292 TOTAL SCORE: 3677 Bonus ------- High Alert Combat Kills 57 Follower Combat Kills 35 Entered Garrisons 200 Cogmind --------- Core Integrity 0/550 Matter 265/300 Energy 85/100 System Corruption 0% Temperature Cool (9) Movement Rolling (110) Ox2 Location -8/Garrison Parts ------- > --- POWER (1) -------- (None) > --- PROPULSION (4) --- Wheel > --- UTILITY (4) ------ Large Storage Unit Transport Network Coupler > --- WEAPON (2) ------- Katana > --- INVENTORY (15) --- Improved Ion Engine Light Nuclear Core Hover Unit Hover Unit Relay Coupler [Swarmer] (31) Relay Coupler [Grunt] (31) Relay Coupler [Specialist] (24) EM Pulse Gun Improved EM Shotgun Small Laser Peak State ------------ > --- POWER ------------ Light Nuclear Core > --- PROPULSION ------- Carbon-fiber Leg Titanium Leg Titanium Leg Titanium Leg > --- UTILITY ---------- Large Storage Unit Advanced Weight Redist. System Transport Network Coupler > --- WEAPON ----------- Mining Claw Katana > --- INVENTORY -------- Improved Ion Engine Improved Ion Engine Light Nuclear Core Aluminum Leg Titanium Leg Wheel Hover Unit Hover Unit Relay Coupler [Swarmer] Relay Coupler [Grunt] Relay Coupler [Specialist] EM Pulse Gun Improved EM Shotgun Small Laser Datajack [Rating: 27] Favorites ----------- Power Improved Ion Engine Engine Improved Ion Engine Power Core Light Nuclear Core Propulsion Aluminum Leg Leg Aluminum Leg Wheel Wheel Utility Transport Network Coupler Device Advanced Weight Redist. System Storage Large Storage Unit Processor Transport Network Coupler Protection Light Armor Plating Weapon Mining Claw Energy Gun Small Laser Ballistic Gun Assault Rifle Slashing Weapon Mining Claw Special Melee Weapon Datajack Build | -11 -10 -9 -8 -8 ------- Run | Scr Mat Mat Mat Gar Slots Evolved 4 | . . 2 2 . Power . | . . . . . Propulsion 2 | . . 1 1 . Utility 2 | . . 1 1 . Weapon . | . . . . . Parts Attached 42 | . 8 13 2 19 Power 6 | . 2 1 . 3 Engine 4 | . 2 1 . 1 Core 2 | . . . . 2 Reactor . | . . . . . Propulsion 22 | . 3 9 1 9 Treads . | . . . . . Leg 20 | . 3 8 1 8 Wheel 2 | . . 1 . 1 Hover . | . . . . . Flight . | . . . . . Utility 4 | . 1 2 1 . Device 1 | . . . 1 . Storage 1 | . . 1 . . Processor 1 | . 1 . . . Hackware . | . . . . . Protection 1 | . . 1 . . Artifact . | . . . . . Weapon 10 | . 2 1 . 7 Energy Gun 1 | . . . . 1 Energy Cannon . | . . . . . Ballistic Gun . | . . . . . Ballistic Cannon . | . . . . . Launcher . | . . . . . Special Weapon . | . . . . . Impact Weapon . | . . . . . Slashing Weapon 6 | . 2 1 . 3 Piercing Weapon . | . . . . . Special Melee Weapon 3 | . . . . 3 Unidentified Prototypes . | . . . . . Parts Lost 22 | . 5 5 . 12 Power 2 | . 1 . . 1 Propulsion 12 | . 2 4 . 6 Utility 2 | . . . . 2 Weapon 6 | . 2 1 . 3 Highest Loss Streak 9 | . 4 2 . 9 To Critical Strikes . | . . . . . Average Slot Usage (%) 89 | . 87 92 90 86 Engine 9 | . 14 11 9 3 Core 1 | . . . . 4 Leg 29 | . 26 29 36 32 Device 2 | . . . . 8 Storage 11 | . 14 11 9 9 Processor 8 | . 3 11 9 9 Protection 3 | . . 6 9 1 Energy Gun 3 | . 10 . . 1 Ballistic Gun 2 | . 9 . . . Slashing Weapon 15 | . 7 22 18 14 Naked Turns . | . . . . . Heaviest Build 34 | 11 14 34 34 34 Greatest Support 77 | 20 20 51 77 77 Greatest Overweight (x) 7 | . 1 2 . 7 Average Overweight (x) . | . . . . . Largest Inventory Capacity 15 | 8 8 15 15 15 Average Capacity 12 | 8 8 14 15 15 Most Carried 15 | 5 8 15 14 15 Average Carried 10 | 4 6 10 14 13 Final Capacity 15 | 8 8 15 15 15 Final Carried 15 | 4 7 15 14 10 Class Distribution -------------------- 67% | Mutant 32% | Scavenger-Mutant Dominant Class ---------------- Mutant | -10/Materials Scavenger-Mutant | -9/Materials Scavenger-Mutant | -8/Materials Mutant | -8/Garrison Resources | -11 -10 -9 -8 -8 ----------- Run | Scr Mat Mat Mat Gar Matter Collected 572 | 200 117 130 . 125 Remotely . | . . . . . Salvage Created 1773 | . 385 973 . 415 Parts 95 | . 17 57 . 21 Haulers Intercepted 1 | . 1 . . . Recyclers Shooed 1 | . 1 . . . Parts Field Recycled . | . . . . . Retrieved Matter . | . . . . . Parts Self-Destructed . | . . . . . Prevented . | . . . . . Kills | -11 -10 -9 -8 -8 ------- Run | Scr Mat Mat Mat Gar Combat Hostiles Destroyed 34 | . 8 16 . 10 Melee 30 | . 4 16 . 10 Guns 4 | . 4 . . . Classes Destroyed 7 | . 4 3 . . Worker 1 | . . 1 . . Hauler 1 | . 1 . . . Recycler 5 | . 1 4 . . Operator 2 | . . 2 . . Swarmer 9 | . 3 3 . 3 Grunt 20 | . 5 9 . 6 Sentry 5 | . . 4 . 1 Best Kill Streak 7 | . 5 7 . 3 Combat Bots Only 4 | . 3 4 . 3 Max Kills in Single Turn 1 | . 1 1 . 1 Gunslinging . | . . . . . Exploded . | . . . . . Melee 1 | . 1 1 . 1 Uniques/NPCs Destroyed . | . . . . . Combat | -11 -10 -9 -8 -8 -------- Run | Scr Mat Mat Mat Gar Damage Taken 3373 | . 718 816 . 1839 Core 1011 | . 248 211 . 552 Absorbed by Shields . | . . . . . Core Remaining (%) 49 | 100 . 47 . . Volleys Fired 28 | . 27 . . 1 Largest 2 | . 2 . . 1 Hottest 60 | . 60 . . 40 Shots Fired 52 | . 51 . . 1 Gun 52 | . 51 . . 1 Cannon . | . . . . . Launcher . | . . . . . Special . | . . . . . Kinetic 24 | . 24 . . . Thermal 27 | . 27 . . . Explosive . | . . . . . Electromagnetic 1 | . . . . 1 Robot Hit Streak 13 | . 13 . . . Robot Miss Streak 3 | . 3 . . . Penetration Max . | . . . . . Secondary Targets . | . . . . . Shots Hit Robots 145 | . 49 51 . 45 Core Hits 49 | . 14 23 . 12 Critical Kills . | . . . . . Critical Parts Destroyed . | . . . . . Critical Strikes 8 | . . . . 8 Sever 8 | . . . . 8 Melee Attacks 162 | . 24 76 . 62 Impact . | . . . . . Slashing 153 | . 24 76 . 53 Piercing . | . . . . . Sneak Attacks 18 | . 2 12 . 4 Combat Hostiles 4 | . . 4 . . Follow-up Attacks 15 | . 3 10 . 2 Damage Inflicted 3426 | . 739 1566 . 1121 Guns 409 | . 409 . . . Cannons . | . . . . . Explosions . | . . . . . Melee 3017 | . 330 1566 . 1121 Ramming . | . . . . . Kinetic 192 | . 192 . . . Thermal 217 | . 217 . . . Explosive . | . . . . . Electromagnetic . | . . . . . Impact . | . . . . . Slashing 3017 | . 330 1566 . 1121 Piercing . | . . . . . Highest Corruption . | . . . . . Average Corruption . | . . . . . Corruption Purged . | . . . . . Corruption Blocked . | . . . . . Overload Shots . | . . . . . Overflow Damage 99 | . 19 24 . 56 Projectiles . | . . . . . Explosions . | . . . . . Melee 99 | . 19 24 . 56 Knockbacks . | . . . . . Impact . | . . . . . Kinetic . | . . . . . Secondary . | . . . . . Self-Inflicted Damage . | . . . . . Shots . | . . . . . Rammed . | . . . . . Targets Rammed . | . . . . . Kicked . | . . . . . Crushed . | . . . . . Highest Temperature 72 | . 72 7 . 13 Average Temperature 27 | . 30 5 . 7 Received Heat Transfer 1143 | . 300 312 . 531 Siege Activations . | . . . . . Robots Corrupted . | . . . . . Combat Hostiles . | . . . . . Parts Fried . | . . . . . Impact Corruptions . | . . . . . Robots Melted . | . . . . . Combat Hostiles . | . . . . . Parts Melted 1 | . 1 . . . Heat Transferred 500 | . 500 . . . Parts Sabotaged . | . . . . . Parts Stolen . | . . . . . Parts Stripped . | . . . . . Power Chain Reactions . | . . . . . Missiles Intercepted . | . . . . . Alert | -11 -10 -9 -8 -8 ------- Run | Scr Mat Mat Mat Gar Peak Influence 552 | . 181 466 196 552 Initial 196 | . . 22 196 127 Average 231 | . 62 253 196 382 Maximum Alert Level 2 | . . 2 . 2 Low Security (%) 51 | 100 100 35 100 24 Level 1 27 | . . 48 . 22 Level 2 20 | . . 15 . 53 Level 3 . | . . . . . Level 4 . | . . . . . Level 5 . | . . . . . High Security . | . . . . . Max Security . | . . . . . Squads Dispatched 2 | . . 2 . . Investigation . | . . . . . Extermination . | . . . . . Reinforcement 2 | . . 2 . . Assault . | . . . . . Garrison . | . . . . . Intercept . | . . . . . Searches Triggered . | . . . . . Construction Impeded . | . . . . . Haulers Reinforced . | . . . . . Active Scanning Responses . | . . . . . Cargo Convoy Interrupts . | . . . . . Stealth | -11 -10 -9 -8 -8 --------- Run | Scr Mat Mat Mat Gar Distress Signals 3 | . . 3 . . Communications Jammed . | . . . . . Distress Signals . | . . . . . Times Spotted 65 | . 13 32 . 20 Peak Tracking Total 8 | . 5 6 . 8 Tactical Retreats 14 | . . 10 . 4 Traps | -11 -10 -9 -8 -8 ------- Run | Scr Mat Mat Mat Gar Traps Triggered 2 | . 1 . . 1 Indirectly . | . . . . . Trap Hack Attempts . | . . . . . Triggered . | . . . . . Disarmed . | . . . . . Reprogrammed . | . . . . . Reused . | . . . . . Traps Extracted . | . . . . . Installed . | . . . . . Triggered . | . . . . . Machines | -11 -10 -9 -8 -8 ---------- Run | Scr Mat Mat Mat Gar Machines Disabled 1 | . . . . 1 Max in Single Turn 1 | . . . . 1 Garrison Relay 1 | . . . . 1 Machines Sabotaged . | . . . . . Garrisons Compromised . | . . . . . Overloaded Fab Kills . | . . . . . Hacking | -11 -10 -9 -8 -8 --------- Run | Scr Mat Mat Mat Gar Machines Accessed 5 | . 2 2 1 . Terminals 4 | . 2 2 . . Fabricators . | . . . . . Repair Stations . | . . . . . Recycling Units . | . . . . . Scanalyzers . | . . . . . Garrison Access 1 | . . . 1 . Total Hacks 11 | . 4 3 4 . Successful 6 | . 3 1 2 . Failed 5 | . 1 2 2 . Catastrophic 1 | . 1 . . . Database Lockouts . | . . . . . Manual 5 | . 2 3 . . Terminals 7 | . 4 3 . . Fabricators . | . . . . . Repair Stations . | . . . . . Recycling Units . | . . . . . Scanalyzers . | . . . . . Garrison Access 4 | . . . 4 . Terminal Hacks 3 | . 3 . . . Record 1 | . 1 . . . Branch Access Points 1 | . 1 . . . Zone Layout 1 | . 1 . . . Fabricator Hacks . | . . . . . Repair Station Hacks . | . . . . . Recycling Unit Hacks . | . . . . . Scanalyzer . | . . . . . Garrison Access Hacks 2 | . . . 2 . Unlock Access 1 | . . . 1 . Coupler Status 1 | . . . 1 . Unauthorized Hacks 1 | . . 1 . . Terminals 1 | . . 1 . . Botnet 1 | . . 1 . . Fabricators . | . . . . . Repair Stations . | . . . . . Recycling Units . | . . . . . Scanalyzers . | . . . . . Garrison Access . | . . . . . Data Cores Recovered . | . . . . . Used . | . . . . . Hacking Detections 5 | . 2 2 1 . Full Trace Events . | . . . . . Feedback Events . | . . . . . Feedback Blocked . | . . . . . Robot Schematics Acquired . | . . . . . Robots Built . | . . . . . Authchips . | . . . . . Time . | . . . . . Total Robot Build Rating . | . . . . . Part Schematics Acquired . | . . . . . Parts Built . | . . . . . Authchips . | . . . . . Time . | . . . . . Total Part Build Rating . | . . . . . Parts Repaired . | . . . . . Time . | . . . . . Parts Recycled . | . . . . . Recycled Matter . | . . . . . Retrieved Matter . | . . . . . Retrieved Components . | . . . . . Parts Scanalyzed . | . . . . . Part Schematics Acquired . | . . . . . Parts Damaged . | . . . . . Bothacking | -11 -10 -9 -8 -8 ------------ Run | Scr Mat Mat Mat Gar Used RIF Installer . | . . . . . Robots Hacked . | . . . . . Non-combat . | . . . . . Combat . | . . . . . Robot Hacks Applied . | . . . . . Relay Couplers Released 5 | . . . . 5 Machine Destruction 5 | . . . . 5 Fabnet Peak Effective % . | . . . . . Robots Rewired 2 | . . . . 2 Allies Hacked . | . . . . . Hacks Repelled . | . . . . . Allies | -11 -10 -9 -8 -8 -------- Run | Scr Mat Mat Mat Gar Total Allies 2 | . . . . 2 Largest Group 2 | . . . . 2 Highest-Rated Group 36 | . . . . 36 Highest-Rated Ally 18 | . . . . 18 Total Orders . | . . . . . Ally Attacks 6 | . . . . 6 Total Damage 123 | . . . . 123 Kills 1 | . . . . 1 Allies Corrupted . | . . . . . Allies Melted . | . . . . . Intel | -11 -10 -9 -8 -8 ------- Run | Scr Mat Mat Mat Gar Robot Analysis Total . | . . . . . Derelict Logs Recovered . | . . . . . Drone Launches . | . . . . . Drone Recoveries . | . . . . . Exploration | -11 -10 -9 -8 -8 ------------- Run | Scr Mat Mat Mat Gar Turns Passed 1791 | 3 509 790 25 464 Spaces Moved 820 | 2 264 328 18 208 Core 1 | . . . . 1 Treads . | . . . . . Legs 771 | 2 264 280 18 207 Wheels 48 | . . 48 . . Hover . | . . . . . Flight . | . . . . . Fastest Speed 110 | 120 120 110 130 125 Average Speed 136 | 120 121 152 130 130 Slowest Speed 400 | 120 190 260 130 400 Overloaded Moves . | . . . . . Propulsion Burnouts . | . . . . . Robots Hopped . | . . . . . Cave-ins Triggered . | . . . . . Exploration Rate (%) 27 | 2 49 35 6 45 Regions Visited 4 Branch Regions . Pre-discovered Areas . | . . . . . Known Exits Taken 1 | . . . 1 . Unknown Exits Taken 3 | 1 1 1 . . Scrap Searched . | . . . . . Spaces Dug 3 | . . 3 . . Terrain Destroyed 3 | . . 3 . . Melee 3 | . . 3 . . Projectile . | . . . . . AOE . | . . . . . Terrain Rammed . | . . . . . Walls Destroyed . | . . . . . Machines Disabled . | . . . . . Actions | -11 -10 -9 -8 -8 --------- Run | Scr Mat Mat Mat Gar Total 1190 | 3 358 497 19 313 Wait 131 | . 30 88 . 13 Move 816 | 1 263 327 17 208 Hop . | . . . . . Pick Up 17 | . 7 5 . 5 Fast Attach 8 | . 2 3 1 2 Attach 14 | . 4 4 1 5 Detach . | . . . . . Swap 20 | . 2 6 . 12 Drop 12 | 2 3 1 . 6 Fire 28 | . 27 . . 1 Melee 143 | . 20 63 . 60 Ram . | . . . . . Kick . | . . . . . Crush . | . . . . . Escape Stasis 1 | . . . . 1 Rewire . | . . . . . Trap . | . . . . . Miscellaneous . | . . . . . Route ------- -11/Scrapyard -10/Materials (discovered 2 exits: *Mat / *Min) -9/Materials -8/Materials -8/Garrison (discovered 1 exit: [*Mat]) History --------- Turn | Location | Event 3 | -11/Scrapyard | Discovered new exit (range 1) 4 | -11/Scrapyard | Entered Materials 43 | -10/Materials | Discovered new exit (range 15) 109 | -10/Materials | Identified exit to Mines 302 | -10/Materials | Build established: Mutant 415 | -10/Materials | Core integrity fell below 50% 434 | -10/Materials | Core integrity fell below 20% 451 | -10/Materials | Lost 4 parts (1p2n1w) 513 | -10/Materials | Entered another Materials area 513 | -9/Materials | Evolved 2 slots: Propulsion x1, Utility x1 1110 | -9/Materials | Build established: Scavenger-Mutant 1181 | -9/Materials | Core integrity fell below 50% 1224 | -9/Materials | Discovered new exit (range 15) 1303 | -9/Materials | Entered another Materials area 1303 | -8/Materials | Evolved 2 slots: Propulsion x1, Utility x1 1327 | -8/Materials | Identified exit to Garrison 1328 | -8/Materials | Entered Garrison 1366 | -8/Garrison | Triggered checkpoint 1454 | -8/Garrison | Garrison Relay disabled 1598 | -8/Garrison | Triggered checkpoint 1612 | -8/Garrison | Triggered checkpoint 1689 | -8/Garrison | Discovered new exit (range 11) 1714 | -8/Garrison | Triggered checkpoint 1756 | -8/Garrison | Core integrity fell below 50% 1784 | -8/Garrison | Core integrity fell below 20% 1792 | -8/Garrison | Destroyed by Y-45 Defender with Beam Rifle Last Messages --------------- 01756_ L-31 Rogue rewired. 01757_ Imp. Ion Engine severed. 01758_ L-31 Rogue destroyed. 01759_ Adv. Weight Redist. System destroyed. 01761_ Sneak attack on L-31 Rogue. 01761_ Attempting to rewire L-31 Rogue. 01762_ Critical hit (Burn: +37). 01762_ Mining Claw destroyed. 01763_ Sneak attack on L-31 Rogue. 01763_ L-31 Rogue rewired. 01767_ Y-45 Defender Lgt. Treads severed. 01768_ Rogue 3a destroyed. 01771_ Rogue 3b destroyed. 01771_ Acquired Titanium Leg. 01774_ Acquired Katana. 01774_ Datajack destroyed. 01774_ Critical hit (Burn: +37). 01774_ Titanium Leg destroyed. 01783_ Carbon-fiber Leg destroyed. 01785_ Y-45 Defender Lgt. Treads severed. Map ----- +----------------------------------------------------+ | | | | | | | | | | | | | ?????????????????????????????????????????????????? | | ?????????????????????????????????????????????????? | | ?????????????????????????????????????????????????? | | ?????????????????????????????????????????????????? | | ?????????????????????????????????????????????????? | | ?????????????????????????????????????????????????? | | ?????????????????????????????????????????????????? | | ?????????????????????????????????????????????????? | | ?????????????????????????????????????????????????? | | ?????????????????????????????????????????????????? | | ?????????????????????????????????????????????????? | | ?????????????????????????????????????????????????? | | ?????????????????????????????????????????????????? | | ?????????????????????????????????????????????????? | | ?????????????????????????????????????????????????? | | ??????????????????????#####??????##??????????????? | | ?????????????????????##ll!#???###"#??????????????? | | ?????????????????????#Y==*##### "#??????????????? | | ?????????????????????#!%*=Y= "#??????????????? | | ?????????????????????#=%*@##### "#??????????????? | | ?????????????????????## !#???# #"#??????????????? | | ??????????????????????#####???# ###??????????????? | | ??????????????????????????????# #????????????????? | | ??????????????????????????????# #????????????????? | | ??????????????????????????????# #????????????????? | | ????????????????????????????### #????????????????? | | ????????????????????????????# #????????????????? | | ????????????????????????????# #????????????????? | | ????????????????????????????# #????????????????? | | ????????????#???????????????### #????????????????? | | ???????????## ############??# #????????????????? | | ???????????# #??# #????????????????? | | ???????????# < #??# #????????????????? | | ???????????# #??# #????????????????? | | ???????????## ######### #??# #????????????????? | | ??????????????????####### #### #????????????????? | | ????????????????# #????????????????? | | ????????????????# ###### ######????????????????? | | ????????????????????????# #?????????????????????? | | ????????????????????????# #?????????????????????? | | ????????????????????????# #?????????????????????? | | ????????????????????????# #?????????????????????? | | ????????????????????????# #????????######""""#### | | ???????????????????###### ########## ^ | +----------------------------------------------------+ Best States ------------- Heat Dissipation 31 Energy Generation 14 Energy Capacity 265 Matter Stores 300 Matter Capacity 300 Sight Range 16 Terrain Scan Density 10 Additional Mass Support 9 Armor Coverage 150 Evasion (%) 55 Item Schematics ----------------- None Robot Schematics ------------------ None Fabricated ------------ Nothing Alien Tech Used ----------------- None Achievements -------------- None Challenges ------------ None Game ------ Seed RestorationGatlingMace Manual? 0 Play Time 00:18:49 Cumulative 39.5 hours Start 2022.06.28 @ 13:03:13 End 2022.06.28 @ 13:21:06 Sessions 1 Manual Loads 0 Difficulty Rogue Special Mode None Game No. 67 Rogue 67 Adventurer 0 Explorer 0 Win Type - Total 0 Types 0/0/0/0/0/0/0/0/0 Lore% 26 Gallery% 30 Achievement% 27 Wizard Run 0 Options --------- ASCII 0 Keyboard 1 Movement Vi Keybinds 1 Fullscreen 1 Font 24/Smallcaps Map View 76x50 Tactical HUD 1 Map Filters NONE Filters NONE Steam 1 RUN: f7282cb9-8596-46c7-8c0d-a40dbcada851